fUST/lending_fUST_20240402
["ID","MTS","AMOUNT","RATE_DAILY","PERIOD"]
[321245465,1712016643203,-35965.346967,0.0004013,2]
[321245468,1712016681245,1606.22181221,0.00034999,4]
[321245508,1712017832904,-702.42652925,0.00035,2]
[321245509,1712017832918,-2077.60097177,0.00035,2]
[321245510,1712017832928,-60.29207795,0.00037371,2]
[321245511,1712017832941,-102.13710605,0.00037371,2]
[321245512,1712017832951,-150.0,0.0003803,2]
[321245513,1712017832962,-172.7190193,0.00038239,8]
[321245514,1712017832972,-339.01804517,0.00038256,2]
[321245515,1712017832982,-400.0,0.00038338,3]
[321245516,1712017832992,-400.0,0.00038338,5]
[321245517,1712017833001,-301.0480389,0.00038339,2]
[321246772,1712019033828,-5365.45064194,0.00036178,2]
[321247251,1712019043940,-150.0,0.00034078,2]
[321247252,1712019043950,-2658.55521676,0.00036178,2]
[321247253,1712019043961,-2799.51,0.0003622,4]
[321247254,1712019043971,-1254.57959538,0.00036221,4]
[321247255,1712019043982,-675.15459339,0.00036222,2]
[321247256,1712019043992,-280.0,0.00036914,2]
[321247257,1712019044002,-281.7045139,0.00036971,2]
[321247258,1712019044012,-400.0,0.00037031,2]
[321247259,1712019044022,-400.0,0.00037031,2]
[321247260,1712019044032,-2336.4378485,0.00037032,2]
[321247261,1712019044042,-238.509851,0.00037781,2]
[321247262,1712019044052,-21576.01827079,0.0003786,2]
[321247265,1712019044141,-3323.98172921,0.0003786,2]
[321247266,1712019044150,-620.03218101,0.00038377,2]
[321247267,1712019044160,-271.21443612,0.00038668,2]
[321247268,1712019044170,-586.82073091,0.00038759,4]
[321247269,1712019044180,-155.37507923,0.00038759,4]
[321247270,1712019044190,-155.32064051,0.0003876,4]
[321247271,1712019044200,-500.0,0.00038915,2]
[321247272,1712019044209,-2103.50134955,0.00038916,2]
[321247273,1712019044219,-500.0,0.0003897,2]
[321247274,1712019044229,-627.46634023,0.00039025,2]
[321247275,1712019044238,-271.21443611,0.00039479,2]
[321247277,1712019044247,-560.0,0.00039622,3]
[321247279,1712019044257,-297.0,0.00039622,5]
[321247280,1712019044267,-202.0622477,0.00039634,2]
[321247282,1712019044276,-1568.2435482,0.00039924,2]
[321247283,1712019044286,-153.0,0.0003996,2]
[321247285,1712019044295,-169.21837,0.0004,2]
[321247287,1712019044305,-169.729293,0.0004,2]
[321247289,1712019044314,-165.036977,0.0004,2]
[321247292,1712019044325,-170.273648,0.0004,2]
[321247293,1712019044335,-483.40412614,0.00040129,4]
[321247295,1712019044345,-2435.18589096,0.0004013,2]
[321247561,1712020233405,-371.29646249,0.00037532,4]
[321247562,1712020233415,-2799.51,0.00037533,4]
[321247563,1712020233424,-364.95578329,0.00037824,2]
[321247564,1712020233434,-238.509851,0.00038564,2]
[321247565,1712020233443,-609.1135891,0.00038993,2]
[321247566,1712020233454,-400.0,0.00039798,3]
[321247567,1712020233464,-24900.0,0.00039799,2]
[321247568,1712020233475,-170.370356,0.0004,2]
[321247569,1712020233484,-1072.16538765,0.0004,2]
[321247570,1712020233495,-10790.66988348,0.0004013,2]
[321247571,1712020233505,-162.72866169,0.0004065,2]
[321247572,1712020233515,-11257.51862526,0.0004075,2]
[321247573,1712020233525,-153.0,0.00040827,2]
[321247574,1712020233534,-153.0,0.00040827,2]
[321247575,1712020233544,-153.0,0.00040827,2]
[321247576,1712020233554,-153.0,0.00040827,2]
[321247577,1712020233563,-153.0,0.00040827,2]
[321247578,1712020233574,-162.72866166,0.00040965,2]
[321247579,1712020233585,-356.0,0.00041,2]
[321247580,1712020233595,-206.74241851,0.00041007,2]
[321247581,1712020233606,-153.0,0.00041053,2]
[321247582,1712020233618,-153.0,0.00041053,2]
[321247583,1712020233629,-153.0,0.00041053,2]
[321247584,1712020233638,-153.0,0.00041053,2]
[321247585,1712020233648,-153.0,0.00041053,2]
[321247586,1712020233658,-153.0,0.00041053,2]
[321247587,1712020233668,-153.0,0.00041053,2]
[321247588,1712020233677,-153.0,0.00041053,2]
[321247589,1712020233687,-153.0,0.00041053,2]
[321247590,1712020233695,-153.0,0.00041053,2]
[321247591,1712020233704,-999.02,0.0004106,48]
[321247592,1712020233714,-2000.0,0.00041069,15]
[321247593,1712020233723,-166.666666,0.00041096,2]
[321247594,1712020233732,-162.72866166,0.0004128,2]
[321247595,1712020233741,-162.72866166,0.00041595,2]
[321247596,1712020233750,-153.0,0.00041604,2]
[321247597,1712020233759,-153.0,0.00041604,2]
[321247598,1712020233770,-153.0,0.00041604,2]
[321247599,1712020233779,-153.0,0.00041604,2]
[321247600,1712020233788,-153.0,0.00041604,2]
[321247601,1712020233798,-153.0,0.00041604,2]
[321247602,1712020233807,-153.0,0.00041604,2]
[321247603,1712020233817,-163.58638894,0.00041637,3]
[321247604,1712020233827,-306.0,0.00041662,2]
[321247605,1712020233837,-2030.79440608,0.000418,15]
[321247606,1712020233849,-306.0,0.00041902,2]
[321247607,1712020233859,-153.0,0.00041902,2]
[321247608,1712020233870,-162.72866166,0.0004191,2]
[321247609,1712020233879,-4071.48673155,0.0004191,2]
[321247610,1712020233890,-150.0,0.00042007,60]
[321247611,1712020233899,-151.0,0.00042007,7]
[321247612,1712020233909,-216.945084,0.00042007,7]
[321247613,1712020233918,-151.0,0.00042007,7]
[321247614,1712020233929,-151.0,0.00042007,7]
[321247615,1712020233939,-363.52463157,0.00042007,7]
[321247682,1712020238539,-2323.83536843,0.00042007,7]
[321247684,1712020238549,-1854.61707679,0.00042007,7]
[321247936,1712020240547,-832.74292321,0.00042007,7]
[321247938,1712020240556,-2687.36,0.00042007,7]
[321247940,1712020240565,-2687.36,0.00042007,7]
[321247942,1712020240574,-2044.19640338,0.00042007,7]
[321247952,1712020240656,-317.52122601,0.00042007,7]
[321247954,1712020240667,-325.64237061,0.00042007,7]
[321247956,1712020240676,-2687.36,0.00042007,7]
[321247957,1712020240693,-1011.7438315,0.00042007,7]
[321248262,1712020243706,-243.30385552,0.00039907,2]
[321248264,1712020243716,-1675.6161685,0.00042007,7]
[321248266,1712020243725,-2333.23721682,0.00042007,7]
[321248842,1712021029961,8535.21285875,0.00033977,4]
[321248843,1712021146178,439.68245906,0.00031877,2]
[321248927,1712021438846,-154.95351395,0.00036875,4]
[321248928,1712021438856,-2799.51,0.00036876,4]
[321248930,1712021438867,-439.68245906,0.00036877,2]
[321248932,1712021438877,-180.840104,0.00039689,2]
[321248934,1712021438887,-169.729293,0.0004,2]
[321248936,1712021438897,-165.036977,0.0004,2]
[321248938,1712021438906,-155.13692448,0.00040125,2]
[321248940,1712021438916,-218.5337437,0.00040365,120]
[321248942,1712021438925,-155.08950286,0.0004057,4]
[321248944,1712021438937,-155.52424488,0.00040571,4]
[321248947,1712021438948,-155.07290058,0.00040571,2]
[321248948,1712021438959,-155.01555651,0.00040571,4]
[321248950,1712021438969,-550.0,0.00040572,3]
[321248952,1712021438979,-5957.56711472,0.00040572,4]
[321249551,1712022637981,-400.0,0.00034999,2]
[321249552,1712022637996,-214.68508188,0.00035,2]
[321249553,1712022638009,-15900.9,0.00035,2]
[321249554,1712022638021,-560.0,0.00037527,2]
[321249555,1712022638032,-223.6395,0.00038355,30]
[321249556,1712022638043,-348.16721919,0.00038472,2]
[321249557,1712022638055,-15044.35050931,0.0004,2]
[321249558,1712022638070,-7170.47037058,0.0004,2]
[321249571,1712022642983,-8777.58785346,0.0004,2]
[321249573,1712022642995,-2000.0,0.0004,2]
[321249574,1712022643007,-2000.0,0.0004,2]
[321249575,1712022643019,-170.370356,0.0004,2]
[321249576,1712022643031,-153.0,0.0004,2]
[321249577,1712022643042,-153.0,0.0004,2]
[321249578,1712022643054,-153.0,0.0004,2]
[321249579,1712022643065,-783.0,0.00040237,3]
[321249580,1712022643077,-274.0977662,0.00040256,2]
[321249581,1712022643089,-267.8957853,0.00040356,2]
[321249582,1712022643101,-153.0,0.00040356,2]
[321249583,1712022643113,-154.7674614,0.00040356,2]
[321249584,1712022643126,-153.0,0.00040356,2]
[321249585,1712022643137,-153.0,0.00040356,2]
[321249586,1712022643147,-153.0,0.00040356,2]
[321249587,1712022643159,-153.0,0.00040356,2]
[321249588,1712022643169,-153.0,0.000404,2]
[321249589,1712022643295,-153.0,0.000404,2]
[321249590,1712022643305,-153.0,0.000404,2]
[321249591,1712022643316,-1840.43390248,0.0004057,2]
[321249592,1712022643326,-1607.76926032,0.00040571,4]
[321249593,1712022643335,-160.24498506,0.00040571,4]
[321249594,1712022643344,-155.71077862,0.00040572,2]
[321249595,1712022643354,-151.0,0.00040572,2]
[321249596,1712022643364,-151.937435,0.00040572,2]
[321249597,1712022643374,-151.0,0.00040572,2]
[321249598,1712022643384,-151.0,0.00040572,2]
[321249599,1712022643393,-151.0,0.00040572,2]
[321249600,1712022643404,-234.692004,0.00040572,2]
[321249601,1712022643413,-234.692004,0.00040572,2]
[321249602,1712022643423,-27477.1484796,0.00040572,4]
[321249627,1712022850013,156.57491024,0.000195,2]
[321249630,1712023557849,334.56577978,0.000189,2]
[321249631,1712023558081,334.56577978,0.000239,2]
[321249693,1712023832146,-154.95351395,0.00036537,4]
[321249694,1712023832155,-364.50387808,0.00036537,4]
[321249695,1712023832165,-154.95351395,0.00036538,4]
[321249696,1712023832174,-799.33640402,0.00036539,4]
[321249697,1712023832184,-400.0,0.0003746,2]
[321249698,1712023832193,-24900.0,0.00037461,2]
[321249699,1712023832202,-459.32386579,0.00038471,4]
[321249700,1712023832210,-562.51798846,0.00038471,4]
[321249701,1712023832220,-933.95501327,0.00038542,4]
[321249702,1712023832229,-888.93155591,0.0003881,2]
[321249703,1712023832237,-42222.48910256,0.00038815,4]
[321249704,1712023832246,-153.0,0.00039778,2]
[321249705,1712023832256,-153.0,0.00039778,2]
[321249706,1712023832266,-153.0,0.00039778,2]
[321249707,1712023832275,-153.0,0.00039778,2]
[321249708,1712023832284,-153.0,0.00039778,2]
[321249709,1712023832295,-202.3118837,0.00039778,2]
[321249710,1712023832305,-153.0,0.00039778,2]
[321249711,1712023832314,-153.0,0.00039778,2]
[321249712,1712023832324,-153.0,0.00039778,2]
[321249713,1712023832333,-202.3118837,0.00039778,2]
[321249714,1712023832342,-202.3118837,0.00039957,2]
[321249715,1712023832352,-153.0,0.00039957,2]
[321249716,1712023832362,-153.0,0.00039957,2]
[321249717,1712023832372,-202.3118837,0.00039957,2]
[321249718,1712023832382,-153.0,0.00039957,2]
[321249719,1712023832392,-202.3118837,0.00039957,2]
[321249720,1712023832403,-153.0,0.00039957,2]
[321249721,1712023832414,-202.3118837,0.00039957,2]
[321249722,1712023832424,-210.435807,0.00039957,2]
[321249723,1712023832434,-202.3118837,0.00039957,2]
[321249724,1712023832443,-202.3118837,0.00039957,2]
[321249725,1712023832453,-202.3118837,0.00039957,2]
[321249726,1712023832462,-202.3118837,0.00039957,2]
[321249727,1712023832473,-202.3118837,0.00039957,2]
[321249728,1712023832482,-202.3118837,0.00039957,2]
[321249729,1712023832491,-153.0,0.00039978,2]
[321249730,1712023832500,-153.0,0.00039978,2]
[321249731,1712023832509,-267.167,0.0004,60]
[321249732,1712023832518,-202.3118837,0.0004,2]
[321249733,1712023832527,-153.0,0.0004,2]
[321249734,1712023832537,-169.729293,0.0004,2]
[321249735,1712023832546,-153.0,0.00040018,2]
[321249736,1712023832555,-153.0,0.00040018,2]
[321249737,1712023832564,-153.0,0.00040018,2]
[321249738,1712023832573,-153.6130429,0.00040056,2]
[321249739,1712023832583,-202.3118837,0.00040056,2]
[321249740,1712023832592,-306.0,0.00040056,2]
[321249741,1712023832602,-153.0,0.00040056,2]
[321249742,1712023832611,-560.0,0.00040063,3]
[321249743,1712023832621,-153.0,0.00040356,2]
[321249744,1712023832630,-652.04320079,0.0004057,4]
[321249745,1712023832642,-409.09982117,0.0004057,4]
[321249746,1712023832651,-207.08580705,0.0004057,4]
[321249747,1712023832660,-155.9967668,0.00040571,4]
[321249748,1712023832670,-1988.15726542,0.00040571,4]
[321249749,1712023832679,-895.38000222,0.00040572,4]
[321249750,1712023832688,-306.0,0.000406,2]
[321249751,1712023832698,-153.0,0.000406,2]
[321249752,1712023832707,-202.3118837,0.000406,2]
[321249753,1712023832717,-202.3118837,0.000406,2]
[321249754,1712023832726,-202.3118837,0.000406,2]
[321249755,1712023832735,-153.0,0.000406,2]
[321249756,1712023832745,-202.3118837,0.000406,2]
[321249757,1712023832753,-153.0,0.000406,2]
[321249758,1712023832762,-153.0,0.0004084,2]
[321249759,1712023832772,-153.0,0.0004084,2]
[321249760,1712023832781,-39.61750436,0.0004084,2]
[321249842,1712025032292,-154.95351395,0.00036997,4]
[321249843,1712025032302,-854.85470831,0.00036997,4]
[321249844,1712025032313,-923.89313196,0.00036998,4]
[321249845,1712025032322,-634.58105239,0.00036998,4]
[321249846,1712025032332,-546.64759302,0.00036999,4]
[321249847,1712025032341,-594.91155692,0.00036999,2]
[321249848,1712025032350,-400.0,0.00036999,3]
[321249850,1712025032360,-463.70000041,0.00037,4]
[321249851,1712025032369,-2501.58625183,0.00037,4]
[321249853,1712025032378,-439.10339985,0.00037,4]
[321249855,1712025032387,-703.53359432,0.00037001,4]
[321249857,1712025032396,-400.0,0.00037001,2]
[321249859,1712025032406,-2800.02094822,0.00037002,4]
[321249861,1712025032415,-754.46501315,0.00037002,4]
[321249863,1712025032425,-77.03818831,0.00037002,4]
[321249867,1712025032478,-198.74122112,0.00037002,4]
[321249868,1712025032487,-745.65407704,0.00037004,4]
[321249869,1712025032497,-167.189283,0.00037013,2]
[321249870,1712025032505,-1241.6554018,0.00037227,2]
[321249871,1712025032515,-467.89637954,0.00037899,4]
[321249872,1712025032524,-150.0,0.000379,2]
[321249873,1712025032534,-155.87946697,0.0003841,4]
[321249874,1712025032543,-719.98342272,0.0003874,4]
[321249875,1712025032553,-3063.00074781,0.00038741,2]
[321249876,1712025032568,-899.999999,0.00038741,2]
[321249935,1712025040491,-701.41535698,0.00036996,4]
[321249937,1712025040500,-268.58464317,0.00038741,2]
[321250213,1712025043532,-1092.80616972,0.00038741,2]
[321250230,1712025043686,-19509.50895462,0.00038741,2]
[321250439,1712025456586,500.0,0.000336,2]
[321250440,1712025511678,242.61107114,0.00029257,2]
[321250441,1712025511721,28.64486126,0.00029257,2]
[321250442,1712025524142,154.95351395,0.00034999,4]
[321250443,1712025534620,3820.76567668,0.00034999,120]
[321250444,1712025660896,2791.45112317,0.0003652,120]
[321250445,1712025703680,1000.0,0.000227,2]
[321250451,1712025946278,1517.74333101,0.00034518,4]
[321250452,1712025947674,2501.58625183,0.00034518,4]
[321250453,1712025956128,275.77940943,0.00034518,4]
[321250456,1712025965569,439.10339985,0.00034518,4]
[321250457,1712025965911,242.71043712,0.00034518,4]
[321250458,1712025966745,154.95351395,0.00034518,4]
[321250459,1712025967570,483.79141428,0.00034518,4]
[321250460,1712025969423,2800.02094822,0.00034518,4]
[321250461,1712025973591,701.41535698,0.00034419,4]
[321250462,1712025984046,854.85470831,0.00034419,4]
[321250463,1712026001879,2588.68185367,0.00034518,4]
[321250655,1712026083312,1517.74333101,0.00034518,4]
[321250656,1712026095130,193.31124943,0.00034419,6]
[321250657,1712026100131,193.31124943,0.0003484,7]
[321250658,1712026100584,439.10339985,0.00034419,4]
[321250660,1712026134785,2588.68185367,0.00034518,4]
[321250763,1712026233589,-150.0,0.0003442,2]
[321250765,1712026233598,-514.4165038,0.00034519,2]
[321250766,1712026233607,-1185.5834962,0.00035473,4]
[321250768,1712026233619,-6278.50081755,0.00035473,4]
[321250770,1712026233628,-5009.06120089,0.00035474,4]
[321250771,1712026233637,-400.0,0.00035474,2]
[321250773,1712026233648,-500.0,0.00035476,7]
[321250774,1712026233658,-500.0,0.00035476,7]
[321250776,1712026233675,-427.69209921,0.00035476,7]
[321250777,1712026233684,-9568.371353,0.00035477,2]
[321250779,1712026233694,-1191.9826546,0.00035792,2]
[321250781,1712026233703,-173.5845173,0.00036452,2]
[321250782,1712026233712,-442.79496303,0.00036756,2]
[321250785,1712026233721,-243.057659,0.00036782,120]
[321250788,1712026233732,-2284.50833133,0.00036855,4]
[321250790,1712026233742,-168.416622,0.00036855,4]
[321250792,1712026233751,-155.91827103,0.00036855,4]
[321250794,1712026233760,-373.36015736,0.00036855,4]
[321250795,1712026233769,-698.69810356,0.00036855,4]
[321250797,1712026233778,-332.66580401,0.00036855,4]
[321250798,1712026233786,-507.94130444,0.00036855,4]
[321250799,1712026233795,-334.1838504,0.00036855,4]
[321250801,1712026233804,-155.8873555,0.00036855,4]
[321250802,1712026233814,-282.78039917,0.00036855,4]
[321250804,1712026233822,-268.02548117,0.00036855,4]
[321250806,1712026233831,-908.86115865,0.00036855,4]
[321250807,1712026233841,-495.07509838,0.00036856,15]
[321250808,1712026233850,-500.0,0.00036856,15]
[321250809,1712026233859,-500.0,0.00036856,15]
[321250810,1712026233869,-500.0,0.00036856,15]
[321250811,1712026233879,-500.0,0.00036856,15]
[321250812,1712026233888,-500.0,0.00036856,15]
[321250813,1712026233897,-500.0,0.00036856,15]
[321250814,1712026233907,-339.77359536,0.00036856,15]
[321250815,1712026233918,-4549.77955966,0.00036857,2]
[321250816,1712026233931,-6840.0,0.00036857,2]
[321250817,1712026233948,-250.0,0.00036857,2]
[321250818,1712026233959,-6622.59820443,0.00036857,2]
[321250930,1712026239341,-193.31124943,0.00034419,6]
[321250932,1712026239351,-6637.62223591,0.00036857,2]
[321250934,1712026239361,-566.4751979,0.00037356,2]
[321250936,1712026239370,-442.79496299,0.00037958,2]
[321250938,1712026239379,-5377.38330459,0.00038,15]
[321250940,1712026239388,-466.0,0.00038017,2]
[321250942,1712026239397,-167.189283,0.00038303,2]
[321250944,1712026239407,-1000.0,0.000386,3]
[321250946,1712026239421,-463.70000041,0.00038739,4]
[321250948,1712026239430,-425.4572951,0.00038739,2]
[321250950,1712026239439,-187.83135236,0.0003874,4]
[321250952,1712026239449,-548.48408039,0.0003874,4]
[321250954,1712026239458,-332.34881082,0.00039009,4]
[321250956,1712026239468,-276.1036204,0.00039009,4]
[321250958,1712026239477,-155.85458783,0.00039009,4]
[321250960,1712026239486,-155.92882395,0.00039009,4]
[321250962,1712026239495,-730.40394515,0.00039009,4]
[321250965,1712026239504,-155.33434368,0.00039009,4]
[321250969,1712026239513,-372.22309348,0.00039009,120]
[321250973,1712026239522,-151.0,0.00039009,2]
[321250976,1712026239533,-164.697931,0.00039009,2]
[321250979,1712026239543,-431.45265924,0.0003901,4]
[321250983,1712026239552,-442.79496299,0.00039159,2]
[321250987,1712026239565,-153.0,0.00039356,2]
[321250990,1712026239575,-306.0,0.00039356,2]
[321250993,1712026239584,-153.0,0.00039356,2]
[321250996,1712026239594,-153.0,0.00039356,2]
[321250998,1712026239602,-306.0,0.00039356,2]
[321251002,1712026239612,-153.0,0.00039356,2]
[321251006,1712026239622,-306.0,0.00039356,2]
[321251009,1712026239631,-153.0,0.00039456,2]
[321251014,1712026239640,-207.86507562,0.00039476,2]
[321251017,1712026239650,-927.16083956,0.0003949,4]
[321251020,1712026239659,-153.0,0.00039556,2]
[321251023,1712026239672,-153.0,0.00039556,2]
[321251025,1712026239681,-306.0,0.00039556,2]
[321251028,1712026239691,-1000.0,0.000396,5]
[321251031,1712026239700,-381.60456133,0.00039623,4]
[321251033,1712026239709,-153.0,0.00039778,2]
[321251036,1712026239718,-1000.0,0.000398,6]
[321251039,1712026239728,-29022.7618161,0.0003988,120]
[321251042,1712026239737,-170.370356,0.0004,2]
[321251045,1712026239746,-151.0,0.0004,2]
[321251047,1712026239755,-151.0,0.0004,2]
[321251050,1712026239765,-151.0,0.0004,2]
[321251053,1712026239774,-151.0,0.0004,2]
[321251056,1712026239783,-151.0,0.0004,2]
[321251058,1712026239792,-222.378871,0.0004,2]
[321251060,1712026239802,-226.322803,0.0004,2]
[321251062,1712026239810,-226.322803,0.0004,2]
[321251065,1712026239820,-204.4112728,0.0004,2]
[321251068,1712026239830,-4660.22295757,0.0004,2]
[321251070,1712026239839,-4660.22295757,0.0004,2]
[321251072,1712026239849,-4660.22295757,0.0004,2]
[321251074,1712026239858,-4660.22295757,0.0004,2]
[321251076,1712026239868,-1000.0,0.000401,7]
[321251078,1712026239878,-188.242958,0.00040178,2]
[321251080,1712026239886,-306.0,0.00040178,2]
[321251082,1712026239896,-1000.0,0.000402,8]
[321251084,1712026239905,-1000.0,0.000402,9]
[321251086,1712026239914,-1000.0,0.000402,10]
[321251088,1712026239929,-1000.0,0.000402,11]
[321251091,1712026239938,-1000.0,0.000402,12]
[321251094,1712026239948,-1000.0,0.000402,13]
[321251097,1712026239958,-1000.0,0.000402,15]
[321251099,1712026239967,-1000.0,0.000402,16]
[321251101,1712026239976,-1000.0,0.000402,17]
[321251124,1712026240074,-1000.0,0.000402,18]
[321251127,1712026240084,-2000.0,0.000402,19]
[321251130,1712026240094,-2000.0,0.000402,20]
[321251133,1712026240103,-2000.0,0.000402,21]
[321251136,1712026240113,-2000.0,0.000402,22]
[321251139,1712026240123,-152.696638,0.000402,2]
[321251142,1712026240133,-151.0,0.000402,2]
[321251145,1712026240142,-226.322803,0.000402,2]
[321251148,1712026240151,-226.322803,0.000402,2]
[321251151,1712026240161,-309.6241977,0.00040278,2]
[321251154,1712026240178,-151.0,0.00040356,2]
[321251157,1712026240187,-226.322803,0.00040356,2]
[321251160,1712026240196,-226.322803,0.00040356,2]
[321251163,1712026240205,-202.3118837,0.00040356,2]
[321251166,1712026240214,-404.6237674,0.00040356,2]
[321251169,1712026240223,-442.79496299,0.00040361,2]
[321251172,1712026240232,-165.13271965,0.00040431,3]
[321251175,1712026240241,-3155.53521822,0.00040432,4]
[321251177,1712026240250,-1467.3217523,0.00040432,4]
[321251179,1712026240259,-260.09319963,0.00040432,4]
[321251181,1712026240267,-671.26166731,0.00040432,4]
[321251183,1712026240276,-178.692596,0.00040432,2]
[321251185,1712026240286,-151.0,0.00040432,2]
[321251188,1712026240295,-151.0,0.00040432,2]
[321251191,1712026240304,-153.0,0.00040779,2]
[321251196,1712026240320,-153.0,0.00040779,2]
[321251199,1712026240334,-153.0,0.00040779,2]
[321251202,1712026240343,-153.0,0.00040779,2]
[321251205,1712026240353,-153.0,0.00040779,2]
[321251208,1712026240362,-153.0,0.00040779,2]
[321251212,1712026240372,-153.0,0.00040779,2]
[321251215,1712026240382,-153.0,0.00040779,2]
[321251218,1712026240391,-153.0,0.00040779,2]
[321251220,1712026240401,-153.0,0.00040779,2]
[321251224,1712026240411,-153.0,0.00040779,2]
[321251227,1712026240425,-153.0,0.00040779,2]
[321251230,1712026240435,-153.0,0.00040779,2]
[321251233,1712026240444,-153.0,0.00040779,2]
[321251236,1712026240454,-153.0,0.00040779,2]
[321251240,1712026240464,-153.0,0.00040779,2]
[321251242,1712026240474,-153.0,0.00040779,2]
[321251244,1712026240484,-153.0,0.00040779,2]
[321251246,1712026240493,-338.25,0.000408,30]
[321251248,1712026240503,-2000.0,0.000408,25]
[321251251,1712026240514,-2000.0,0.000408,26]
[321251254,1712026240524,-2000.0,0.000408,27]
[321251256,1712026240536,-2000.0,0.000408,28]
[321251258,1712026240546,-226.322803,0.000408,2]
[321251260,1712026240556,-226.322803,0.000408,2]
[321251262,1712026240567,-8258.31920496,0.0004084,4]
[321251264,1712026240576,-155.02436583,0.0004084,4]
[321251266,1712026240586,-151.0,0.0004084,2]
[321251268,1712026240595,-151.0,0.0004084,2]
[321251270,1712026240606,-151.0,0.0004084,2]
[321251272,1712026240615,-226.322803,0.0004084,2]
[321251274,1712026240625,-226.322803,0.0004084,2]
[321251276,1712026240634,-587.0,0.000409,30]
[321251278,1712026240644,-188.12660749,0.00041,2]
[321251280,1712026240654,-524.54,0.00041007,120]
[321251282,1712026240663,-500.0,0.00041007,120]
[321251284,1712026240676,-500.0,0.00041007,120]
[321251286,1712026240685,-500.0,0.00041007,120]
[321251288,1712026240695,-500.0,0.00041007,120]
[321251290,1712026240709,-500.0,0.00041007,120]
[321251292,1712026240718,-166.666666,0.00041096,2]
[321251294,1712026240732,-469.41087351,0.00041096,31]
[321251296,1712026240741,-500.0,0.00041114,120]
[321251298,1712026240751,-215.41,0.00041114,120]
[321251300,1712026240760,-202.3118837,0.00041178,2]
[321251302,1712026240770,-154.1343111,0.00041178,2]
[321251304,1712026240779,-306.0,0.00041178,2]
[321251306,1712026240789,-2000.0,0.000412,30]
[321251308,1712026240798,-442.79496299,0.00041562,2]
[321251310,1712026240808,-157.6337083,0.00041601,2]
[321251312,1712026240817,-151.0,0.00041662,7]
[321251314,1712026240826,-226.322803,0.00041662,7]
[321251316,1712026240836,-226.322803,0.00041662,7]
[321251318,1712026240845,-306.0,0.00041662,2]
[321251320,1712026240854,-153.0,0.00041662,2]
[321251322,1712026240863,-153.0,0.00041662,2]
[321251324,1712026240873,-153.0,0.00041662,2]
[321251326,1712026240883,-153.0,0.00041662,2]
[321251329,1712026240892,-158.5189597,0.00041662,2]
[321251331,1712026240902,-153.0,0.00041662,2]
[321251333,1712026240911,-153.0,0.00041662,2]
[321251335,1712026240926,-153.0,0.00041662,2]
[321251337,1712026240935,-153.0,0.00041662,2]
[321251339,1712026240945,-153.0,0.00041662,2]
[321251341,1712026240954,-153.0,0.00041662,2]
[321251343,1712026240963,-153.0,0.00041662,2]
[321251345,1712026240973,-2390.89061782,0.00041695,14]
[321251347,1712026240982,-151.0,0.00041699,7]
[321251348,1712026240992,-151.0,0.00041787,7]
[321251350,1712026241001,-207.86507562,0.00041795,2]
[321251352,1712026241010,-2398.62614889,0.000418,60]
[321251354,1712026241019,-226.322803,0.000418,7]
[321251356,1712026241029,-226.322803,0.000418,7]
[321251359,1712026241039,-150.5,0.00041869,35]
[321251361,1712026241048,-153.0,0.00041875,2]
[321251363,1712026241057,-153.0,0.00041875,2]
[321251365,1712026241066,-153.0,0.00041875,2]
[321251367,1712026241075,-153.0,0.00041875,2]